fUSD/lending_fUSD_20250220
["ID","MTS","AMOUNT","RATE_DAILY","PERIOD"]
[353845921,1740090643930,-500.0,0.0001057,2]
[353845923,1740090643941,-301.38780376,0.00010573,2]
[353845925,1740090643950,-150.0,0.00010575,2]
[353845927,1740090643959,-150.0,0.00010577,2]
[353845929,1740090643968,-150.0,0.00010761,2]
[353845931,1740090643978,-329.77615014,0.00010815,2]
[353845933,1740090643987,-1060.0,0.00010847,2]
[353845935,1740090643997,-867.54765066,0.00010887,2]
[353845937,1740090644006,-167.02,0.00010899,2]
[353845939,1740090644015,-245.43342364,0.000109,2]
[353845941,1740090644024,-150.0,0.00010928,2]
[353845943,1740090644034,-150.0,0.0001095,2]
[353845945,1740090644043,-500.0,0.00010958,2]
[353845947,1740090644052,-351.08125081,0.00010958,2]
[353845949,1740090644062,-500.0,0.00010958,2]
[353845951,1740090644071,-500.0,0.00010958,2]
[353845953,1740090644081,-500.0,0.00010958,2]
[353845955,1740090644090,-329.29664218,0.00010958,2]
[353845957,1740090644099,-500.0,0.00010958,2]
[353845959,1740090644108,-500.0,0.00010958,2]
[353845961,1740090644118,-500.0,0.00010958,2]
[353845963,1740090644127,-500.0,0.00010958,2]
[353845965,1740090644136,-500.0,0.00010958,2]
[353845967,1740090644146,-566.24,0.00010958,2]
[353845969,1740090644155,-500.0,0.00010958,2]
[353845971,1740090644164,-500.0,0.00010958,2]
[353845973,1740090644174,-500.0,0.00010958,2]
[353845974,1740090644183,-500.0,0.00010958,2]
[353845977,1740090644193,-500.0,0.00010958,2]
[353845978,1740090644203,-500.0,0.00010958,2]
[353845981,1740090644212,-500.0,0.00010958,2]
[353845982,1740090644221,-500.0,0.00010958,2]
[353845985,1740090644231,-240.45560957,0.00010958,7]
[353845986,1740090644240,-500.0,0.00010958,2]
[353845988,1740090644250,-500.0,0.00010958,2]
[353845990,1740090644259,-500.0,0.00010958,2]
[353845992,1740090644268,-500.0,0.00010958,2]
[353845994,1740090644277,-500.0,0.00010958,2]
[353845996,1740090644287,-503.8386239,0.00010958,2]
[353845998,1740090644296,-500.0,0.00010958,2]
[353846000,1740090644305,-500.0,0.00010958,2]
[353846002,1740090644315,-500.0,0.00010958,2]
[353846004,1740090644324,-506.71582122,0.00010958,2]
[353846006,1740090644333,-500.0,0.00010999,2]
[353846008,1740090644343,-322.1429656,0.00010999,2]
[353846010,1740090644352,-420.0,0.00010999,2]
[353846012,1740090644362,-163.89606292,0.00011023,2]
[353846014,1740090644371,-205.7,0.00011041,2]
[353846016,1740090644380,-445.05269033,0.00011041,2]
[353846019,1740090644390,-244.15,0.00011041,2]
[353846020,1740090644399,-500.0,0.00011041,2]
[353846022,1740090644409,-150.0,0.00011084,2]
[353846024,1740090644418,-1068.22391286,0.00011118,2]
[353846026,1740090644427,-500.0,0.00011123,2]
[353846028,1740090644437,-150.0,0.00011155,2]
[353846030,1740090644447,-150.0,0.00011186,2]
[353846033,1740090644460,-500.0,0.00011205,2]
[353846034,1740090644469,-245.43342364,0.0001121,2]
[353846037,1740090644479,-150.0,0.00011217,2]
[353846038,1740090644488,-150.0,0.00011226,2]
[353846040,1740090644498,-150.0,0.00011244,2]
[353846042,1740090644507,-150.0,0.00011244,2]
[353846044,1740090644516,-150.0,0.00011244,2]
[353846046,1740090644526,-150.0,0.00011244,2]
[353846048,1740090644537,-150.0,0.00011244,2]
[353846051,1740090644546,-150.0,0.00011251,2]
[353846053,1740090644555,-500.0,0.00011287,2]
[353846055,1740090644564,-167.00804497,0.00011305,2]
[353846057,1740090644573,-150.0,0.00011348,2]
[353846059,1740090644582,-500.0,0.00011369,2]
[353846061,1740090644592,-1787.0,0.00011405,2]
[353846062,1740090644601,-782.0,0.00011405,2]
[353846065,1740090644610,-1266.0,0.00011405,2]
[353846067,1740090644620,-908.0,0.00011405,2]
[353846069,1740090644629,-539.0,0.00011405,2]
[353846071,1740090644638,-4024.0,0.00011405,2]
[353846073,1740090644647,-1272.0,0.00011405,2]
[353846074,1740090644656,-2024.0,0.00011405,2]
[353846076,1740090644666,-150.0,0.00011405,2]
[353846079,1740090644675,-3917.0,0.00011405,2]
[353846081,1740090644684,-640.0,0.00011405,2]
[353846083,1740090644694,-1060.0,0.00011418,2]
[353846085,1740090644703,-500.0,0.00011452,2]
[353846087,1740090644712,-150.0,0.00011452,2]
[353846089,1740090644722,-383.6,0.00011462,2]
[353846090,1740090644731,-168.63,0.00011463,2]
[353846092,1740090644742,-738.79,0.0001148,2]
[353846094,1740090644751,-150.0,0.00011494,2]
[353846097,1740090644761,-1000.0,0.00011502,2]
[353846099,1740090644771,-150.0,0.00011515,2]
[353846101,1740090644780,-150.188,0.00011515,2]
[353846102,1740090644790,-150.553,0.00011515,2]
[353846104,1740090644799,-245.43342364,0.00011521,2]
[353846106,1740090644809,-500.0,0.00011534,2]
[353846108,1740090644818,-150.0,0.00011556,2]
[353846110,1740090644828,-163.89606292,0.00011585,2]
[353846112,1740090644837,-500.0,0.00011616,2]
[353846114,1740090644847,-150.0,0.0001166,2]
[353846116,1740090644856,-150.0,0.0001166,2]
[353846118,1740090644865,-500.0,0.00011698,2]
[353846120,1740090644875,-329.77615014,0.0001173,2]
[353846122,1740090644884,-150.0,0.00011764,2]
[353846125,1740090644893,-500.0,0.0001178,2]
[353846127,1740090644902,-150.0,0.00011785,2]
[353846129,1740090644912,-1000.0,0.000118,2]
[353846131,1740090644921,-245.43342364,0.00011831,2]
[353846133,1740090644930,-167.00804495,0.00011853,2]
[353846134,1740090644939,-500.0,0.00011863,2]
[353846136,1740090644949,-150.0,0.00011868,2]
[353846138,1740090644958,-867.54765066,0.00011874,2]
[353846140,1740090644967,-500.0,0.00011945,2]
[353846142,1740090644976,-150.0,0.00011973,2]
[353846144,1740090644987,-600.0,0.00012,2]
[353846145,1740090644996,-1187.0,0.00012,2]
[353846146,1740090645006,-1060.0,0.00012019,2]
[353846147,1740090645015,-628.63055528,0.00012027,2]
[353846148,1740090645025,-150.0,0.0001204,2]
[353846149,1740090645035,-1000.0,0.00012054,2]
[353846150,1740090645046,-7095.92,0.00012055,2]
[353846151,1740090645057,-150.0,0.00012077,2]
[353846152,1740090645068,-150.0,0.00012077,2]
[353846154,1740090645078,-14693.56,0.00012087,2]
[353846156,1740090645088,-28459.88,0.00012087,2]
[353846158,1740090645098,-587.0,0.00012099,2]
[353846160,1740090645107,-2000.0,0.000121,2]
[353846162,1740090645117,-2000.0,0.000121,2]
[353846164,1740090645126,-2000.0,0.000121,2]
[353846165,1740090645135,-150.0,0.00012133,2]
[353846167,1740090645144,-245.43342364,0.00012141,2]
[353846170,1740090645154,-152.0,0.00012147,3]
[353846172,1740090645164,-163.89606292,0.00012147,2]
[353846173,1740090645174,-150.0,0.00012154,2]
[353846175,1740090645183,-150.0,0.00012172,2]
[353846178,1740090645193,-150.0,0.00012181,2]
[353846180,1740090645203,-150.0,0.00012285,2]
[353846181,1740090645213,-280.26700472,0.00012319,2]
[353846184,1740090645223,-964.02574099,0.00012322,2]
[353846185,1740090645232,-1682.535,0.00012327,2]
[353846187,1740090645241,-1000.0,0.00012328,2]
[353846190,1740090645251,-500.0,0.00012329,2]
[353846191,1740090645261,-280.26700472,0.00012338,2]
[353846194,1740090645271,-964.02574099,0.00012364,2]
[353846196,1740090645280,-964.02574099,0.00012373,2]
[353846198,1740090645290,-280.26700472,0.0001238,2]
[353846200,1740090645300,-150.0,0.00012381,2]
[353846201,1740090645309,-150.0,0.00012387,2]
[353846203,1740090645319,-150.0,0.00012389,2]
[353846205,1740090645328,-5000.0,0.00012399,2]
[353846207,1740090645338,-964.02574099,0.00012399,2]
[353846209,1740090645348,-55555.0,0.000124,2]
[353846212,1740090645357,-210112.99034253,0.000124,3]
[353846214,1740090645366,-187.85505714,0.000124,2]
[353846216,1740090645376,-167.00804495,0.000124,2]
[353846218,1740090645385,-151.0,0.000124,2]
[353846220,1740090645395,-151.0,0.000124,2]
[353846222,1740090645404,-151.0,0.000124,2]
[353846223,1740090645413,-151.0,0.000124,2]
[353846225,1740090645423,-360.774289,0.000124,2]
[353846227,1740090645432,-360.774289,0.000124,2]
[353846230,1740090645441,-291.463354,0.000124,2]
[353846231,1740090645452,-193.061232,0.000124,2]
[353846234,1740090645465,-2275.44595,0.000124,2]
[353846235,1740090645474,-151.0,0.000124,2]
[353846237,1740090645484,-151.0,0.000124,2]
[353846239,1740090645493,-183.908726,0.000124,2]
[353846242,1740090645505,-280.26700472,0.00012406,2]
[353846243,1740090645515,-245.43342364,0.00012452,2]
[353846246,1740090645524,-10000.0,0.00012456,2]
[353846247,1740090645537,-500.0,0.00012473,2]
[353846249,1740090645547,-4348.7185758,0.00012489,2]
[353846251,1740090645556,-2602.55944825,0.00012489,2]
[353846662,1740090713843,173.08,8.767e-05,2]
[353846667,1740090979310,541.04,9.215e-05,2]
[353846668,1740091129071,1000.0,0.000205,120]
[353846669,1740091160832,1000.0,0.000205,120]
[353846670,1740091162568,1000.0,0.000205,120]
[353846671,1740091185174,1000.0,0.000205,120]
[353846672,1740091209550,1000.0,0.000205,120]
[353846673,1740091382543,254.02,0.00013918,30]
[353846682,1740091827338,157.2,8.767e-05,2]
[353846684,1740091832240,-473.33872835,0.0001,2]
[353846685,1740091832252,-76.66127165,0.0001,2]
[353846686,1740091832262,-500.0,0.00010174,2]
[353846687,1740091832272,-500.0,0.00010174,2]
[353846688,1740091832282,-4.53911259,0.00010174,2]
[353846689,1740091832293,-365.66549,0.00010174,2]
[353846690,1740091832346,-129.79539741,0.00010174,2]
[353846691,1740091832355,-300.0,0.00010954,2]
[353846692,1740091832365,-150.0,0.00011096,2]
[353846693,1740091832374,-19.50162767,0.00011124,2]
[353846694,1740091832385,-149.12837233,0.00011124,2]
[353846695,1740091832395,-975.37018613,0.00011132,2]
[353846696,1740091832406,-24.62981387,0.00011132,2]
[353846697,1740091832415,-520.52859042,0.00011269,2]
[353846698,1740091832425,-150.99,0.00011452,2]
[353846700,1740091832613,-541.04,0.00011479,2]
[353846702,1740091832623,-449.05,0.00011559,2]
[353846704,1740091832633,-443.27,0.00011583,2]
[353846706,1740091832641,-1110.0,0.00011654,2]
[353846708,1740091832650,-157.74089385,0.00011959,2]
[353846710,1740091832660,-150.0,0.00011959,2]
[353846712,1740091832668,-150.0,0.00011959,2]
[353846714,1740091832677,-600.0,0.00012,2]
[353846716,1740091832686,-420.0,0.00012038,2]
[353846718,1740091832695,-1000.0,0.00012054,2]
[353846720,1740091832705,-3554.76,0.00012087,2]
[353846722,1740091832714,-520.52859039,0.00012128,2]
[353846724,1740091832723,-214.7619771,0.00012151,2]
[353846726,1740091832732,-172.548647,0.00012152,3]
[353846728,1740091832741,-152.0,0.00012258,3]
[353846730,1740091832750,-1346.028,0.00012316,2]
[353846732,1740091832760,-150.0,0.00012316,2]
[353846733,1740091832769,-1000.0,0.00012328,2]
[353846735,1740091832779,-500.0,0.00012329,2]
[353846737,1740091832789,-693.64708737,0.000124,2]
[353846740,1740091832801,-306.35291263,0.000124,2]
[353846742,1740091832811,-255.30708737,0.000124,2]
[353846744,1740091832822,-61.20501263,0.000124,2]
[353846746,1740091832831,-163.89606293,0.000124,2]
[353846749,1740091832840,-323.20347792,0.000124,2]
[353846751,1740091832854,-1075.2178,0.000124,2]
[353846753,1740091832863,-5087.0992581,0.0001248,2]
[353846755,1740091832872,-200.0,0.00012489,2]
[353846757,1740091832881,-1516.96396,0.00012489,2]
[353846759,1740091832891,-91.762917,0.0001249,2]
[353846761,1740091832903,-1152.6845272,0.0001249,2]
[353846763,1740091832913,-404.17697157,0.00012499,2]
[353846765,1740091832923,-500.0,0.00012499,2]
[353846767,1740091832932,-500.0,0.00012499,2]
[353846769,1740091832941,-500.0,0.00012499,2]
[353846771,1740091832950,-500.0,0.00012499,2]
[353846773,1740091832959,-500.0,0.00012499,2]
[353846775,1740091832968,-500.0,0.00012499,2]
[353846777,1740091832977,-500.0,0.00012499,2]
[353846779,1740091832986,-500.0,0.00012499,2]
[353846781,1740091832995,-500.0,0.00012499,2]
[353846783,1740091833004,-500.0,0.00012499,2]
[353846785,1740091833014,-482.68634185,0.00012499,2]
[353846787,1740091833023,-500.0,0.00012499,2]
[353846789,1740091833033,-500.0,0.00012499,2]
[353846791,1740091833042,-2012.12733252,0.00012499,2]
[353846793,1740091833054,-1515.83099931,0.00012499,2]
[353846795,1740091833065,-1128.24166817,0.00012499,2]
[353846798,1740091833075,-9318.97119208,0.000125,2]
[353846800,1740091833090,-282.72282812,0.000125,2]
[353846802,1740091833102,-2808.74890539,0.000125,2]
[353846805,1740091833113,-360442.62496102,0.000125,2]
[353846807,1740091833125,-1517.07440125,0.000125,2]
[353846809,1740091833137,-3211.47363825,0.000125,2]
[353846811,1740091833148,-639.78187031,0.000125,2]
[353846813,1740091833159,-3107.47528186,0.000125,2]
[353846816,1740091833171,-4287.90357461,0.000125,2]
[353846818,1740091833187,-3342.09999,0.000125,2]
[353846820,1740091833199,-1101.0,0.000125,2]
[353847326,1740091838261,-872.55,0.00010954,2]
[353847337,1740091838357,-3874.36,0.00010954,2]
[353847339,1740091838369,-1561.44979924,0.00010954,2]
[353847341,1740091838380,-7799.9879166,0.00010954,2]
[353847343,1740091838389,-208661.70246141,0.000125,2]
[353847345,1740091838398,-203.9,0.000125,2]
[353847347,1740091838408,-203.9,0.000125,2]
[353847350,1740091838417,-1000.0,0.00012524,2]
[353847351,1740091838426,-266.12,0.00012526,2]
[353847354,1740091838435,-229.32161768,0.00012526,2]
[353847356,1740091838445,-155.0,0.00012526,2]
[353847358,1740091838454,-206.0,0.0001254,2]
[353847360,1740091838463,-324.0,0.0001254,2]
[353847362,1740091838472,-4656.2,0.00012581,2]
[353847363,1740091838481,-5007.93965,0.000126,2]
[353847366,1740091838490,-1000.0,0.00012602,2]
[353847368,1740091838501,-51350.83,0.00012603,2]
[353847370,1740091838511,-383.6,0.00012608,2]
[353847371,1740091838519,-200.0,0.00012614,2]
[353847372,1740091838529,-1060.0,0.00012652,2]
[353847373,1740091838538,-4656.2,0.00012664,2]
[353847374,1740091838547,-163.89606292,0.0001269,2]
[353847375,1740091838556,-200.0,0.0001274,2]
[353847376,1740091838565,-4656.2,0.00012746,2]
[353847377,1740091838574,-165.14,0.00012775,2]
[353847378,1740091838583,-500.0,0.00012778,2]
[353847379,1740091838593,-500.0,0.00012778,2]
[353847380,1740091838602,-4656.2,0.00012828,2]
[353847382,1740091838611,-200.0,0.00012867,2]
[353847384,1740091838620,-1000.0,0.00012876,2]
[353847386,1740091838629,-252.12,0.00012877,2]
[353847388,1740091838638,-550.0,0.00012877,2]
[353847390,1740091838648,-5000.0,0.000129,2]
[353847392,1740091838657,-203.11731628,0.000129,2]
[353847394,1740091838666,-4656.2,0.0001291,2]
[353847396,1740091838675,-500.0,0.00012914,2]
[353847398,1740091838684,-500.0,0.00012914,2]
[353847400,1740091838693,-503.87058196,0.00012914,2]
[353847402,1740091838703,-188.4435144,0.0001293,2]
[353847404,1740091838711,-163.89606292,0.0001298,2]
[353847406,1740091838721,-520.52859039,0.00012988,2]
[353847408,1740091838730,-4656.2,0.00012992,2]
[353847410,1740091838739,-200.0,0.00012996,2]
[353847412,1740091838749,-1103.0,0.00013,2]
[353847414,1740091838758,-300.000001,0.00013,2]
[353847416,1740091838767,-4802.16258732,0.00013,2]
[353847418,1740091838777,-4236.35199124,0.00013,3]
[353847420,1740091838785,-1300.0,0.00013,5]
[353847422,1740091838795,-6018.26921964,0.00013,2]
[353847424,1740091838804,-3500.0,0.00013,2]
[353847426,1740091838813,-4243.31156505,0.00013,2]
[353847428,1740091838823,-102356.9869955,0.00013,2]
[353847431,1740091838831,-1000.0,0.00013,2]
[353847433,1740091838841,-1004.0,0.00013,2]
[353847436,1740091838857,-1000.0,0.00013,2]
[353847439,1740091838866,-1000.0,0.00013,3]
[353847442,1740091838874,-500.0,0.00013,2]
[353847444,1740091838884,-500.0,0.00013,2]
[353847447,1740091838895,-500.0,0.00013,2]
[353847450,1740091838904,-500.0,0.00013,2]
[353847452,1740091838913,-500.0,0.00013,2]
[353847455,1740091838923,-500.0,0.00013,2]
[353847457,1740091838932,-500.0,0.00013,2]
[353847459,1740091838942,-500.0,0.00013,2]
[353847461,1740091838951,-500.0,0.00013,2]
[353847463,1740091838960,-500.0,0.00013,2]
[353847465,1740091838969,-500.0,0.00013,2]
[353847467,1740091838979,-500.0,0.00013,2]
[353847469,1740091838988,-500.0,0.00013,2]
[353847471,1740091838997,-500.0,0.00013,2]
[353847473,1740091839006,-500.0,0.00013,2]
[353847475,1740091839015,-500.0,0.00013,2]
[353847477,1740091839024,-500.0,0.00013,2]
[353847479,1740091839034,-500.0,0.00013,2]
[353847481,1740091839043,-500.0,0.00013,2]
[353847483,1740091839052,-500.0,0.00013,2]
[353847485,1740091839061,-500.0,0.00013,2]
[353847487,1740091839070,-500.0,0.00013,2]
[353847489,1740091839079,-500.0,0.00013,2]
[353847491,1740091839087,-500.0,0.00013,2]
[353847493,1740091839096,-500.0,0.00013,2]
[353847494,1740091839105,-500.0,0.00013,2]
[353847496,1740091839115,-500.0,0.00013,2]
[353847499,1740091839124,-500.0,0.00013,2]
[353847501,1740091839134,-500.0,0.00013,2]
[353847503,1740091839143,-500.0,0.00013,2]
[353847505,1740091839152,-500.0,0.00013,2]
[353847507,1740091839161,-253.89,0.00013,2]
[353847509,1740091839170,-500.0,0.00013,2]
[353847511,1740091839180,-500.0,0.00013,2]
[353847513,1740091839189,-98530.70718481,0.00013,2]
[353847515,1740091839198,-472.52,0.00013,2]
[353847517,1740091839207,-443.27,0.0001303,2]
[353847519,1740091839216,-5123.711447,0.0001305,2]
[353847521,1740091839225,-4656.2,0.00013075,2]
[353847523,1740091839235,-942.62418231,0.00013096,2]
[353847524,1740091839244,-500.0,0.000131,2]
[353847526,1740091839255,-30094.19368965,0.00013148,5]
[353847529,1740091839265,-203.11731611,0.0001315,2]
[353847531,1740091839275,-1000.0,0.0001315,2]
[353847533,1740091839285,-193.0,0.00013151,2]
[353847534,1740091839294,-1000.0,0.00013151,2]
[353847537,1740091839304,-1000.0,0.00013151,2]
[353847539,1740091839313,-1000.0,0.00013151,2]
[353847540,1740091839323,-1000.0,0.00013151,2]
[353847542,1740091839332,-925.0,0.00013151,2]
[353847545,1740091839341,-312.0,0.00013151,2]
[353847546,1740091839350,-1000.0,0.00013151,2]
[353847548,1740091839359,-832.0,0.00013151,2]
[353847550,1740091839369,-152.0,0.00013153,4]
[353847553,1740091839378,-4656.2,0.00013157,2]
[353847554,1740091839388,-10000.0,0.00013178,3]
[353847556,1740091839397,-151.0,0.00013178,2]
[353847558,1740091839407,-151.0,0.00013178,2]
[353847560,1740091839416,-151.0,0.00013178,2]
[353847562,1740091839426,-942.62418231,0.00013178,2]
[353847564,1740091839435,-472.52,0.00013189,2]
[353847566,1740091839444,-247.552,0.00013199,2]
[353847568,1740091839453,-244.374148,0.00013199,2]
[353847570,1740091839462,-151.0,0.00013199,2]
[353847572,1740091839471,-151.0,0.00013199,2]
[353847574,1740091839480,-224.64328479,0.00013199,2]
[353847576,1740091839489,-252.00503808,0.00013199,2]
[353847578,1740091839498,-648.44574625,0.00013199,2]
[353847580,1740091839508,-19669.42774585,0.00013199,2]
[353847582,1740091839517,-30354.4265,0.00013199,2]
[353847584,1740091839526,-151.0,0.000132,2]
[353847586,1740091839535,-151.0,0.000132,2]
[353847588,1740091839544,-151.0,0.000132,2]
[353847590,1740091839553,-151.0,0.000132,2]
[353847593,1740091839564,-166.596586,0.000132,2]
[353847595,1740091839574,-290.183285,0.000132,2]
[353847597,1740091839586,-175.574,0.000132,2]
[353847600,1740091839598,-151.0,0.000132,2]
[353847602,1740091839609,-250.0,0.00013213,2]
[353847604,1740091839620,-472.52,0.00013229,2]
[353847606,1740091839631,-587.0,0.00013229,2]
[353847608,1740091839642,-942.62418231,0.00013233,2]
[353847610,1740091839651,-4656.2,0.00013239,2]
[353847612,1740091839662,-163.89606292,0.0001327,2]
[353847615,1740091839672,-472.52,0.0001328,2]
[353847617,1740091839683,-472.52,0.0001328,2]
[353847619,1740091839693,-942.62418231,0.00013288,2]
[353847621,1740091839704,-472.52,0.00013288,2]
[353847623,1740091839714,-472.52,0.00013288,2]
[353847625,1740091839724,-472.52,0.00013288,2]
[353847627,1740091839735,-472.52,0.00013288,2]
[353847630,1740091839746,-472.52,0.00013288,2]
[353847632,1740091839756,-472.52,0.00013288,2]
[353847634,1740091839766,-472.52,0.00013288,2]
[353847636,1740091839779,-472.52,0.00013288,2]
[353847638,1740091839790,-472.52,0.00013288,2]
[353847641,1740091839802,-472.52,0.00013288,2]
[353847643,1740091839813,-472.52,0.00013288,2]
[353847645,1740091839823,-472.52,0.00013288,2]
[353847647,1740091839834,-472.52,0.00013288,2]
[353847649,1740091839845,-472.52,0.00013288,2]
[353847651,1740091839858,-472.52,0.00013288,2]
[353847653,1740091839868,-472.52,0.00013288,2]
[353847655,1740091839878,-472.52,0.00013288,2]
[353847657,1740091839888,-472.52,0.00013288,2]
[353847660,1740091839899,-472.52,0.00013288,2]
[353847662,1740091839909,-472.52,0.00013288,2]
[353847664,1740091839920,-472.52,0.00013288,2]
[353847666,1740091839933,-472.52,0.00013288,2]
[353847668,1740091839943,-472.52,0.00013288,2]
[353847670,1740091839954,-472.52,0.00013288,2]
[353847673,1740091839964,-472.52,0.00013288,2]
[353847675,1740091839975,-472.52,0.00013288,2]
[353847677,1740091839986,-472.52,0.00013288,2]
[353847679,1740091839996,-472.52,0.00013288,2]
[353847681,1740091840007,-472.52,0.00013288,2]
[353847683,1740091840019,-472.52,0.00013288,2]
[353847686,1740091840030,-472.52,0.00013288,2]
[353847688,1740091840041,-472.52,0.00013288,2]
[353847690,1740091840052,-472.52,0.00013288,2]
[353847692,1740091840063,-472.52,0.00013288,2]
[353847694,1740091840074,-472.52,0.00013288,2]
[353847696,1740091840085,-472.52,0.00013288,2]
[353847699,1740091840095,-472.52,0.00013288,2]
[353847701,1740091840107,-472.52,0.00013288,2]
[353847703,1740091840118,-472.52,0.00013288,2]
[353847705,1740091840130,-472.52,0.00013288,2]
[353847707,1740091840140,-472.52,0.00013288,2]
[353847710,1740091840151,-472.52,0.00013288,2]
[353847712,1740091840163,-472.52,0.00013288,2]
[353847714,1740091840174,-472.52,0.00013288,2]
[353847716,1740091840184,-472.52,0.00013288,2]
[353847718,1740091840196,-472.52,0.00013288,2]
[353847720,1740091840207,-472.52,0.00013288,2]
[353847723,1740091840218,-472.52,0.00013288,2]
[353847725,1740091840228,-472.52,0.00013288,2]
[353847727,1740091840239,-472.52,0.00013288,2]
[353847729,1740091840251,-472.52,0.00013288,2]
[353847731,1740091840261,-472.52,0.00013288,2]
[353847733,1740091840273,-472.52,0.00013288,2]
[353847735,1740091840286,-472.52,0.00013288,2]
[353847738,1740091840297,-472.52,0.00013288,2]
[353847740,1740091840307,-472.52,0.00013288,2]
[353847743,1740091840316,-472.52,0.00013288,2]
[353847745,1740091840327,-472.52,0.00013288,2]
[353847747,1740091840338,-472.52,0.00013288,2]
[353847749,1740091840349,-472.52,0.00013288,2]
[353847751,1740091840359,-472.52,0.00013288,2]
[353847753,1740091840369,-472.52,0.00013288,2]
[353847756,1740091840380,-472.52,0.00013288,2]
[353847757,1740091840390,-472.52,0.00013288,2]
[353847760,1740091840401,-472.52,0.00013288,2]
[353847762,1740091840411,-472.52,0.00013288,2]
[353847764,1740091840421,-472.52,0.00013288,2]
[353847765,1740091840432,-472.52,0.00013288,2]
[353847766,1740091840444,-472.52,0.00013288,2]
[353847767,1740091840456,-472.52,0.00013288,2]
[353847768,1740091840467,-472.52,0.00013288,2]
[353847769,1740091840478,-472.52,0.00013288,2]
[353847770,1740091840488,-472.52,0.00013288,2]
[353847771,1740091840498,-472.52,0.00013288,2]
[353847772,1740091840507,-472.52,0.00013288,2]
[353847774,1740091840518,-472.52,0.00013288,2]
[353847776,1740091840528,-472.52,0.00013288,2]
[353847778,1740091840539,-472.52,0.00013288,2]
[353847780,1740091840549,-472.52,0.00013288,2]
[353847783,1740091840560,-472.52,0.00013288,2]
[353847785,1740091840572,-472.52,0.00013288,2]
[353847787,1740091840584,-472.52,0.00013288,2]
[353847789,1740091840596,-472.52,0.00013288,2]
[353847791,1740091840606,-472.52,0.00013288,2]
[353847794,1740091840618,-472.52,0.00013288,2]
[353847796,1740091840628,-472.52,0.00013288,2]
[353847798,1740091840639,-472.52,0.00013288,2]
[353847800,1740091840649,-472.52,0.00013288,2]
[353847802,1740091840660,-472.52,0.00013288,2]
[353847804,1740091840670,-472.52,0.00013288,2]
[353847806,1740091840681,-472.52,0.00013288,2]
[353847808,1740091840692,-472.52,0.00013288,2]
[353847811,1740091840703,-472.52,0.00013288,2]
[353847813,1740091840713,-472.52,0.00013288,2]
[353847815,1740091840724,-73831.0,0.0001329,2]
[353847817,1740091840735,-151.0,0.0001329,2]
[353847819,1740091840745,-151.0,0.0001329,2]
[353847821,1740091840756,-182.843274,0.0001329,2]
[353847823,1740091840767,-1524.4481192,0.0001329,2]
[353847825,1740091840777,-1804.4487941,0.0001329,2]
[353847828,1740091840788,-2084.4494691,0.0001329,2]
[353847830,1740091840799,-6210.9675699,0.0001329,2]
[353847832,1740091840810,-7334.8358816,0.0001329,2]